fUSD/lending_fUSD_20250107
["ID","MTS","AMOUNT","RATE_DAILY","PERIOD"]
[348070251,1736292653088,-1755.43,0.00010371,2]
[348070252,1736292653097,-1379.47,0.00010371,2]
[348070253,1736292653106,-715.68,0.00010371,2]
[348070254,1736292653116,-713.64,0.00010371,2]
[348070255,1736292653126,-569.4,0.00010371,2]
[348070256,1736292653136,-500.0,0.00010372,2]
[348070257,1736292653145,-500.0,0.00010372,2]
[348070258,1736292653155,-573.61589591,0.00010372,2]
[348070259,1736292653168,-481.21394882,0.00010372,2]
[348070260,1736292653177,-500.0,0.00010372,2]
[348070261,1736292653187,-500.0,0.00010372,2]
[348070262,1736292653196,-500.0,0.00010372,2]
[348070263,1736292653205,-500.0,0.00010372,2]
[348070264,1736292653214,-500.0,0.00010372,2]
[348070265,1736292653224,-500.0,0.00010372,2]
[348070266,1736292653233,-500.0,0.00010372,2]
[348070267,1736292653242,-500.0,0.00010372,2]
[348070268,1736292653252,-873.35,0.00010372,2]
[348070269,1736292653262,-500.0,0.00010372,2]
[348070270,1736292653271,-500.0,0.00010372,2]
[348070271,1736292653281,-627.81,0.00010372,2]
[348070272,1736292653290,-500.0,0.00010372,2]
[348070273,1736292653299,-500.0,0.00010372,2]
[348070274,1736292653308,-1651.15,0.00010372,2]
[348070275,1736292653318,-830.73,0.00010372,2]
[348070276,1736292653327,-2943.89,0.00010372,2]
[348070277,1736292653338,-1390.53,0.00010372,2]
[348070278,1736292653347,-747.25,0.00010372,2]
[348070279,1736292653357,-693.1,0.00010372,2]
[348070280,1736292653367,-500.0,0.00010372,2]
[348070281,1736292653376,-735.02,0.00010372,2]
[348070282,1736292653385,-714.32,0.00010372,2]
[348070283,1736292653395,-500.0,0.00010372,2]
[348070284,1736292653405,-1293.95,0.00010372,2]
[348070285,1736292653416,-500.0,0.00010372,2]
[348070286,1736292653425,-669.98,0.00010372,2]
[348070287,1736292653435,-500.0,0.00010372,2]
[348070288,1736292653444,-1091.45,0.00010372,2]
[348070289,1736292653453,-536.11,0.00010372,2]
[348070290,1736292653596,-768.98,0.00010372,2]
[348070291,1736292653607,-1066.69,0.00010372,2]
[348070292,1736292653617,-152.15,0.00010372,2]
[348070293,1736292653626,-507.47,0.00010372,2]
[348070294,1736292653636,-5859.49,0.00010373,2]
[348070295,1736292653647,-1032.62,0.00010373,2]
[348070296,1736292653656,-628.06,0.00010373,2]
[348070297,1736292653666,-648.95,0.00010373,2]
[348070298,1736292653675,-2801.34,0.00010373,2]
[348070299,1736292653685,-500.0,0.00010373,2]
[348070300,1736292653694,-1062.87,0.00010373,2]
[348070301,1736292653703,-1463.66,0.00010373,2]
[348070302,1736292653712,-1150.62,0.00010373,2]
[348070303,1736292653722,-1898.62,0.00010373,2]
[348070304,1736292653731,-1000.0,0.00010373,2]
[348070305,1736292653740,-1279.25,0.00010373,2]
[348070306,1736292653750,-778.74,0.00010373,2]
[348070307,1736292653759,-2516.19,0.00010373,2]
[348070308,1736292653769,-2106.61,0.00010373,2]
[348070309,1736292653779,-1466.42,0.00010397,2]
[348070310,1736292653788,-23313.1063,0.00010407,2]
[348070311,1736292653798,-1681.2414,0.00010407,2]
[348070312,1736292653807,-902.0,0.00010411,2]
[348070313,1736292653816,-541.07,0.00010448,2]
[348070314,1736292653825,-500.0,0.00010448,2]
[348070315,1736292653835,-524.27,0.00010448,2]
[348070316,1736292653844,-571.57,0.00010448,2]
[348070317,1736292653853,-500.0,0.00010448,2]
[348070318,1736292653863,-693.44,0.00010448,2]
[348070319,1736292653872,-509.19,0.00010448,2]
[348070320,1736292653882,-657.72,0.00010448,2]
[348070321,1736292653892,-500.0,0.00010448,2]
[348070322,1736292653901,-500.0,0.00010448,2]
[348070323,1736292653912,-500.0,0.00010448,2]
[348070324,1736292653921,-385.52440531,0.00010448,2]
[348070325,1736292653930,-500.0,0.00010448,2]
[348070326,1736292653939,-521.0,0.00010448,2]
[348070327,1736292653949,-503.96,0.00010448,2]
[348070328,1736292653959,-500.0,0.00010448,2]
[348070329,1736292653968,-561.94,0.00010448,2]
[348070330,1736292653978,-589.55,0.00010448,2]
[348070331,1736292653989,-500.0,0.00010448,2]
[348070332,1736292653998,-500.0,0.00010448,2]
[348070333,1736292654008,-500.0,0.00010448,2]
[348070334,1736292654018,-669.39,0.00010448,2]
[348070335,1736292654028,-500.0,0.00010448,2]
[348070336,1736292654038,-500.0,0.00010448,2]
[348070337,1736292654048,-602.31,0.00010448,2]
[348070338,1736292654057,-500.0,0.00010448,2]
[348070339,1736292654070,-500.0,0.00010448,2]
[348070340,1736292654081,-543.78,0.00010448,2]
[348070341,1736292654090,-500.0,0.00010448,2]
[348070342,1736292654099,-500.0,0.00010448,2]
[348070343,1736292654110,-631.46,0.00010448,2]
[348070344,1736292654120,-500.0,0.00010448,2]
[348070345,1736292654129,-500.0,0.00010448,2]
[348070346,1736292654141,-500.0,0.00010448,2]
[348070347,1736292654150,-500.0,0.00010448,2]
[348070348,1736292654161,-500.0,0.00010448,2]
[348070349,1736292654171,-500.0,0.00010448,2]
[348070350,1736292654180,-618.91,0.00010448,2]
[348070351,1736292654190,-500.0,0.00010448,2]
[348070352,1736292654200,-500.0,0.00010448,2]
[348070353,1736292654210,-662.58,0.00010448,2]
[348070354,1736292654219,-643.65,0.00010448,2]
[348070355,1736292654229,-574.37,0.00010448,2]
[348070356,1736292654239,-640.72,0.00010448,2]
[348070357,1736292654248,-500.0,0.00010448,2]
[348070358,1736292654258,-500.0,0.00010448,2]
[348070359,1736292654267,-826.87,0.00010448,2]
[348070360,1736292654277,-548.03,0.00010448,2]
[348070361,1736292654287,-500.0,0.00010448,2]
[348070362,1736292654297,-698.06,0.00010448,2]
[348070363,1736292654306,-500.0,0.00010448,2]
[348070364,1736292654316,-500.0,0.00010448,2]
[348070365,1736292654326,-604.13,0.00010448,2]
[348070366,1736292654336,-500.0,0.00010448,2]
[348070367,1736292654345,-500.0,0.00010448,2]
[348070368,1736292654356,-500.0,0.00010448,2]
[348070369,1736292654365,-559.91,0.00010448,2]
[348070370,1736292654375,-2335.15,0.00010448,2]
[348070371,1736292654384,-3858.83,0.00010448,2]
[348070372,1736292654394,-576.27,0.00010448,2]
[348070373,1736292654403,-752.42,0.00010448,2]
[348070374,1736292654413,-500.0,0.00010448,2]
[348070375,1736292654423,-2247.14,0.00010448,2]
[348070376,1736292654433,-500.0,0.00010448,2]
[348070377,1736292654443,-500.0,0.00010448,2]
[348070378,1736292654452,-703.22,0.00010448,2]
[348070379,1736292654463,-709.69,0.00010448,2]
[348070380,1736292654473,-3001.65,0.00010448,2]
[348070381,1736292654482,-500.0,0.00010448,2]
[348070382,1736292654492,-500.0,0.00010448,2]
[348070383,1736292654501,-500.0,0.00010448,2]
[348070384,1736292654510,-944.77,0.00010448,2]
[348070385,1736292654520,-500.0,0.00010448,2]
[348070386,1736292654530,-501.02,0.00010448,2]
[348070387,1736292654539,-1004.2,0.00010448,2]
[348070388,1736292654549,-500.0,0.00010448,2]
[348070389,1736292654558,-500.0,0.00010448,2]
[348070390,1736292654568,-555.21,0.00010448,2]
[348070391,1736292654577,-575.12,0.00010448,2]
[348070392,1736292654587,-941.82,0.00010448,2]
[348070393,1736292654596,-607.67,0.00010448,2]
[348070394,1736292654605,-500.0,0.00010448,2]
[348070395,1736292654614,-500.0,0.00010448,2]
[348070396,1736292654623,-500.0,0.00010448,2]
[348070397,1736292654634,-500.0,0.00010448,2]
[348070398,1736292654644,-361.39496499,0.00010476,2]
[348070399,1736292654654,-135123.17317826,0.000105,2]
[348070400,1736292654664,-2351.89,0.00010507,2]
[348070401,1736292654674,-1267.64,0.00010507,2]
[348070402,1736292654683,-861.33,0.00010507,2]
[348070403,1736292654693,-915.28,0.00010507,2]
[348070404,1736292654703,-500.0,0.00010507,2]
[348070405,1736292654712,-1100.64,0.00010507,2]
[348070406,1736292654721,-673.78,0.00010507,2]
[348070407,1736292654731,-754.88,0.00010507,2]
[348070408,1736292654740,-802.12,0.00010507,2]
[348070409,1736292654749,-1104.23,0.00010507,2]
[348070410,1736292654759,-1542.83,0.00010507,2]
[348070411,1736292654768,-2595.99,0.00010507,2]
[348070412,1736292654777,-1547.9,0.00010507,2]
[348070413,1736292654787,-1000.0,0.00010521,2]
[348070414,1736292654796,-500.0,0.00010548,2]
[348070415,1736292654805,-515.7,0.00010548,2]
[348070416,1736292654815,-500.0,0.00010548,2]
[348070417,1736292654824,-500.0,0.00010548,2]
[348070418,1736292654834,-500.0,0.00010548,2]
[348070419,1736292654844,-500.0,0.00010548,2]
[348070420,1736292654853,-500.0,0.00010548,2]
[348070421,1736292654862,-500.0,0.00010548,2]
[348070422,1736292654872,-500.0,0.00010548,2]
[348070423,1736292654883,-500.0,0.00010548,2]
[348070424,1736292654892,-500.0,0.00010548,2]
[348070425,1736292654902,-500.0,0.00010548,2]
[348070426,1736292654911,-500.0,0.00010548,2]
[348070427,1736292654921,-500.0,0.00010548,2]
[348070428,1736292654931,-500.0,0.00010548,2]
[348070429,1736292654940,-500.0,0.00010548,2]
[348070430,1736292654949,-500.0,0.00010548,2]
[348070431,1736292654959,-500.0,0.00010548,2]
[348070432,1736292654967,-500.0,0.00010548,2]
[348070433,1736292654976,-500.0,0.00010548,2]
[348070434,1736292654986,-634.89,0.00010548,2]
[348070435,1736292654995,-500.0,0.00010548,2]
[348070436,1736292655004,-500.0,0.00010548,2]
[348070437,1736292655013,-500.0,0.00010548,2]
[348070438,1736292655022,-500.0,0.00010548,2]
[348070439,1736292655032,-500.0,0.00010548,2]
[348070440,1736292655043,-500.0,0.00010548,2]
[348070441,1736292655054,-500.0,0.00010548,2]
[348070442,1736292655068,-500.0,0.00010548,2]
[348070443,1736292655078,-500.0,0.00010548,2]
[348070444,1736292655087,-500.0,0.00010548,2]
[348070445,1736292655096,-500.0,0.00010548,2]
[348070446,1736292655106,-500.0,0.00010548,2]
[348070447,1736292655115,-627.67,0.00010548,2]
[348070448,1736292655125,-500.0,0.00010548,2]
[348070449,1736292655135,-439.88,0.00010548,2]
[348070450,1736292655144,-500.0,0.00010548,2]
[348070451,1736292655154,-215.35538053,0.00010548,2]
[348070452,1736292655163,-500.0,0.00010548,2]
[348070453,1736292655173,-500.0,0.00010548,2]
[348070454,1736292655183,-500.0,0.00010548,2]
[348070455,1736292655193,-500.0,0.00010548,2]
[348070456,1736292655203,-500.0,0.00010548,2]
[348070457,1736292655213,-486.97723121,0.00010548,2]
[348070458,1736292655223,-500.0,0.00010548,2]
[348070459,1736292655233,-500.0,0.00010548,2]
[348070460,1736292655243,-500.0,0.00010548,2]
[348070461,1736292655252,-500.0,0.00010548,2]
[348070462,1736292655262,-500.0,0.00010548,2]
[348070463,1736292655272,-500.0,0.00010548,2]
[348070464,1736292655281,-500.0,0.00010548,2]
[348070465,1736292655291,-500.0,0.00010548,2]
[348070466,1736292655301,-500.0,0.00010548,2]
[348070467,1736292655310,-500.0,0.00010549,2]
[348070468,1736292655320,-500.0,0.00010549,2]
[348070469,1736292655330,-500.0,0.00010549,2]
[348070470,1736292655339,-500.0,0.00010549,2]
[348070471,1736292655349,-500.0,0.00010549,2]
[348070472,1736292655359,-500.0,0.00010549,2]
[348070473,1736292655368,-560.18,0.00010549,2]
[348070474,1736292655378,-500.0,0.00010549,2]
[348070475,1736292655388,-532.9,0.00010549,2]
[348070476,1736292655398,-500.0,0.00010549,2]
[348070477,1736292655407,-838.97,0.00010549,2]
[348070478,1736292655417,-500.0,0.00010549,2]
[348070479,1736292655427,-500.0,0.00010549,2]
[348070480,1736292655436,-500.0,0.00010549,2]
[348070481,1736292655447,-500.0,0.00010549,2]
[348070482,1736292655456,-500.0,0.00010549,2]
[348070483,1736292655465,-500.0,0.00010549,2]
[348070484,1736292655475,-500.0,0.00010549,2]
[348070485,1736292655484,-500.0,0.00010549,2]
[348070486,1736292655494,-500.0,0.00010549,2]
[348070487,1736292655503,-500.0,0.00010549,2]
[348070488,1736292655513,-561.68,0.00010549,2]
[348070489,1736292655523,-500.0,0.00010549,2]
[348070490,1736292655532,-166.61244001,0.00010549,2]
[348070491,1736292655541,-500.0,0.00010549,2]
[348070492,1736292655551,-500.0,0.00010549,2]
[348070493,1736292655560,-500.0,0.00010549,2]
[348070494,1736292655569,-500.0,0.00010549,2]
[348070495,1736292655579,-500.0,0.00010549,2]
[348070496,1736292655588,-500.0,0.00010549,2]
[348070497,1736292655598,-500.0,0.00010549,2]
[348070498,1736292655608,-650.26,0.00010549,2]
[348070499,1736292655617,-1115.0,0.00010549,2]
[348070500,1736292655626,-500.0,0.00010549,2]
[348070501,1736292655636,-500.0,0.00010549,2]
[348070502,1736292655646,-500.0,0.00010549,2]
[348070503,1736292655656,-500.0,0.00010549,2]
[348070504,1736292655665,-1082.07,0.00010549,2]
[348070505,1736292655675,-649.16,0.00010549,2]
[348070506,1736292655686,-987.88,0.00010549,2]
[348070507,1736292655695,-672.76,0.00010549,2]
[348070508,1736292655705,-500.0,0.00010549,2]
[348070509,1736292655715,-276.87015756,0.00010549,2]
[348070510,1736292655724,-500.0,0.00010549,2]
[348070511,1736292655734,-500.0,0.00010549,2]
[348070512,1736292655743,-500.0,0.00010549,2]
[348070513,1736292655885,-500.0,0.00010549,2]
[348070514,1736292655896,-500.0,0.00010549,2]
[348070515,1736292655906,-500.0,0.00010549,2]
[348070516,1736292655916,-500.0,0.00010549,2]
[348070517,1736292655926,-620.94,0.00010549,2]
[348070518,1736292655937,-500.0,0.00010549,2]
[348070519,1736292655947,-500.0,0.00010549,2]
[348070520,1736292655956,-500.0,0.00010549,2]
[348070521,1736292655966,-691.37,0.00010549,2]
[348070522,1736292655975,-500.0,0.00010549,2]
[348070523,1736292655984,-915.97,0.00010549,2]
[348070524,1736292655994,-548.18,0.00010549,2]
[348070525,1736292656003,-500.0,0.00010549,2]
[348070526,1736292656013,-748.05,0.00010549,2]
[348070527,1736292656023,-500.0,0.00010549,2]
[348070528,1736292656035,-500.0,0.00010549,2]
[348070529,1736292656044,-500.0,0.00010549,2]
[348070530,1736292656054,-500.0,0.00010549,2]
[348070531,1736292656065,-785.16,0.00010549,2]
[348070532,1736292656075,-523.95,0.00010549,2]
[348070533,1736292656084,-856.44,0.0001055,2]
[348070534,1736292656093,-981.16,0.0001055,2]
[348070535,1736292656103,-1160.94,0.0001055,2]
[348070536,1736292656112,-818.18,0.0001055,2]
[348070537,1736292656122,-1925.98,0.0001055,2]
[348070538,1736292656131,-1346.43,0.0001055,2]
[348070539,1736292656141,-3191.57,0.0001055,2]
[348070540,1736292656151,-2217.3,0.0001055,2]
[348070541,1736292656160,-500.0,0.0001055,2]
[348070542,1736292656170,-1106.25,0.0001055,2]
[348070543,1736292656179,-3006.56,0.0001055,2]
[348070544,1736292656189,-500.0,0.0001055,2]
[348070545,1736292656199,-744.34,0.0001055,2]
[348070546,1736292656208,-1231.32,0.0001055,2]
[348070547,1736292656217,-1259.96,0.0001055,2]
[348070548,1736292656227,-1978.38,0.0001055,2]
[348070549,1736292656236,-1056.07,0.0001055,2]
[348070550,1736292656245,-3128.95,0.0001055,2]
[348070551,1736292656255,-1437.13,0.0001055,2]
[348070552,1736292656264,-2298.99,0.0001055,2]
[348070553,1736292656274,-1358.28,0.0001055,2]
[348070554,1736292656283,-1418.78,0.0001055,2]
[348070555,1736292656293,-457.85,0.00010573,2]
[348070556,1736292656302,-1000.0,0.00010573,2]
[348070557,1736292656311,-1000.0,0.00010599,2]
[348070558,1736292656321,-361.39496499,0.00010603,2]
[348070559,1736292656330,-869.24,0.00010645,2]
[348070560,1736292656339,-671.0,0.00010645,2]
[348070561,1736292656349,-1267.31,0.00010645,2]
[348070562,1736292656358,-5460.23,0.00010645,2]
[348070563,1736292656367,-596.22,0.00010645,2]
[348070564,1736292656376,-2176.3,0.00010645,2]
[348070565,1736292656386,-1159.33,0.00010645,2]
[348070566,1736292656395,-1069.96,0.00010645,2]
[348070567,1736292656404,-1526.92,0.00010645,2]
[348070568,1736292656415,-1766.9,0.00010645,2]
[348070569,1736292656424,-500.0,0.00010645,2]
[348070570,1736292656434,-935.34,0.00010645,2]
[348070571,1736292656444,-3211.9,0.00010645,2]
[348070572,1736292656453,-936.837691,0.00010645,2]
[348070573,1736292656462,-1374.41,0.00010645,2]
[348070574,1736292656471,-848.56,0.00010645,2]
[348070575,1736292656481,-864.840061,0.00010645,2]
[348070576,1736292656490,-3269.2,0.00010645,2]
[348070577,1736292656499,-1755.43,0.00010645,2]
[348070578,1736292656509,-1379.47,0.00010645,2]
[348070579,1736292656518,-715.68,0.00010645,2]
[348070580,1736292656527,-713.64,0.00010645,2]
[348070581,1736292656537,-569.4,0.00010645,2]
[348070582,1736292656547,-500.0,0.00010646,2]
[348070583,1736292656556,-500.0,0.00010646,2]
[348070584,1736292656566,-500.0,0.00010646,2]
[348070585,1736292656575,-500.0,0.00010646,2]
[348070586,1736292656585,-500.0,0.00010646,2]
[348070587,1736292656594,-500.0,0.00010646,2]
[348070588,1736292656604,-500.0,0.00010646,2]
[348070589,1736292656613,-500.0,0.00010646,2]
[348070590,1736292656622,-500.0,0.00010646,2]
[348070591,1736292656631,-500.0,0.00010646,2]
[348070592,1736292656641,-873.35,0.00010646,2]
[348070593,1736292656650,-500.0,0.00010646,2]
[348070594,1736292656660,-500.0,0.00010646,2]
[348070595,1736292656669,-627.81,0.00010646,2]
[348070596,1736292656679,-500.0,0.00010646,2]
[348070597,1736292656689,-500.0,0.00010646,2]
[348070598,1736292656698,-1651.15,0.00010646,2]
[348070599,1736292656707,-830.73,0.00010646,2]
[348070600,1736292656717,-2943.89,0.00010646,2]
[348070601,1736292656727,-1390.53,0.00010646,2]
[348070602,1736292656736,-747.25,0.00010646,2]
[348070603,1736292656745,-693.1,0.00010646,2]
[348070604,1736292656757,-500.0,0.00010646,2]
[348070605,1736292656767,-735.02,0.00010646,2]
[348070606,1736292656776,-714.32,0.00010646,2]
[348070607,1736292656785,-500.0,0.00010646,2]
[348070608,1736292656794,-1293.95,0.00010646,2]
[348070609,1736292656805,-500.0,0.00010646,2]
[348070610,1736292656814,-669.98,0.00010646,2]
[348070611,1736292656823,-500.0,0.00010646,2]
[348070612,1736292656833,-536.11,0.00010646,2]
[348070613,1736292656842,-1091.45,0.00010646,2]
[348070614,1736292656851,-768.98,0.00010646,2]
[348070615,1736292656861,-1066.69,0.00010646,2]
[348070616,1736292656871,-5859.49,0.00010647,2]
[348070617,1736292656880,-1032.62,0.00010647,2]
[348070618,1736292656889,-628.06,0.00010647,2]
[348070619,1736292656898,-648.95,0.00010647,2]
[348070620,1736292656907,-2801.34,0.00010647,2]
[348070621,1736292656917,-500.0,0.00010647,2]
[348070622,1736292656928,-1062.87,0.00010647,2]
[348070623,1736292656938,-1463.66,0.00010647,2]
[348070624,1736292656947,-1150.62,0.00010647,2]
[348070625,1736292656957,-1898.62,0.00010647,2]
[348070626,1736292656966,-1000.0,0.00010647,2]
[348070627,1736292656975,-1279.25,0.00010647,2]
[348070628,1736292656985,-778.74,0.00010647,2]
[348070629,1736292656994,-2516.19,0.00010647,2]
[348070630,1736292657003,-2106.61,0.00010647,2]
[348070631,1736292657012,-3000.0,0.00010647,2]
[348070632,1736292657021,-12404.0140201,0.00010653,2]
[348070633,1736292657031,-28807.520186,0.0001066,2]
[348070634,1736292657041,-733.0153323,0.00010667,2]
[348070635,1736292657053,-290.658471,0.000107,2]
[348070636,1736292657064,-216.630009,0.00010703,2]
[348070637,1736292657075,-541.07,0.00010722,2]
[348070638,1736292657084,-500.0,0.00010722,2]
[348070639,1736292657093,-524.27,0.00010722,2]
[348070640,1736292657103,-571.57,0.00010722,2]
[348070641,1736292657112,-514.83322829,0.00010722,2]
[348070642,1736292657121,-693.44,0.00010722,2]
[348070643,1736292657131,-509.19,0.00010722,2]
[348070644,1736292657140,-657.72,0.00010722,2]
[348070645,1736292657149,-500.0,0.00010722,2]
[348070646,1736292657159,-500.0,0.00010722,2]
[348070647,1736292657169,-500.0,0.00010722,2]
[348070648,1736292657179,-500.0,0.00010722,2]
[348070649,1736292657188,-521.0,0.00010722,2]
[348070650,1736292657197,-503.96,0.00010722,2]
[348070651,1736292657207,-500.0,0.00010722,2]
[348070652,1736292657216,-561.94,0.00010722,2]
[348070653,1736292657224,-589.55,0.00010722,2]
[348070654,1736292657233,-500.0,0.00010722,2]
[348070655,1736292657243,-500.0,0.00010722,2]
[348070656,1736292657252,-500.0,0.00010722,2]
[348070657,1736292657262,-669.39,0.00010722,2]
[348070658,1736292657271,-500.0,0.00010722,2]
[348070659,1736292657280,-500.0,0.00010722,2]
[348070660,1736292657290,-602.31,0.00010722,2]
[348070661,1736292657299,-500.0,0.00010722,2]
[348070662,1736292657308,-500.0,0.00010722,2]
[348070663,1736292657317,-543.78,0.00010722,2]
[348070664,1736292657327,-500.0,0.00010722,2]
[348070665,1736292657336,-631.46,0.00010722,2]
[348070666,1736292657345,-500.0,0.00010722,2]
[348070667,1736292657356,-500.0,0.00010722,2]
[348070668,1736292657365,-500.0,0.00010722,2]
[348070669,1736292657375,-500.0,0.00010722,2]
[348070670,1736292657384,-500.0,0.00010722,2]
[348070671,1736292657394,-500.0,0.00010722,2]
[348070672,1736292657403,-618.91,0.00010722,2]
[348070673,1736292657413,-500.0,0.00010722,2]
[348070674,1736292657423,-500.0,0.00010722,2]
[348070675,1736292657432,-662.58,0.00010722,2]
[348070676,1736292657442,-643.65,0.00010722,2]
[348070677,1736292657452,-574.37,0.00010722,2]
[348070678,1736292657461,-640.72,0.00010722,2]
[348070679,1736292657470,-500.0,0.00010722,2]
[348070680,1736292657479,-500.0,0.00010722,2]
[348070681,1736292657489,-826.87,0.00010722,2]
[348070682,1736292657498,-548.03,0.00010722,2]
[348070683,1736292657507,-500.0,0.00010722,2]
[348070684,1736292657516,-698.06,0.00010722,2]
[348070685,1736292657526,-500.0,0.00010722,2]
[348070686,1736292657535,-500.0,0.00010722,2]
[348070687,1736292657544,-604.13,0.00010722,2]
[348070688,1736292657554,-500.0,0.00010722,2]
[348070689,1736292657563,-500.0,0.00010722,2]
[348070690,1736292657572,-500.0,0.00010722,2]
[348070691,1736292657581,-559.91,0.00010722,2]
[348070692,1736292657591,-2335.15,0.00010722,2]
[348070693,1736292657600,-3858.83,0.00010722,2]
[348070694,1736292657609,-576.27,0.00010722,2]
[348070695,1736292657619,-752.42,0.00010722,2]
[348070696,1736292657628,-500.0,0.00010722,2]
[348070697,1736292657639,-2247.14,0.00010722,2]
[348070698,1736292657648,-500.0,0.00010722,2]
[348070699,1736292657658,-500.0,0.00010722,2]
[348070700,1736292657667,-703.22,0.00010722,2]
[348070701,1736292657676,-709.69,0.00010722,2]
[348070702,1736292657686,-3001.65,0.00010722,2]
[348070703,1736292657695,-500.0,0.00010722,2]
[348070704,1736292657704,-500.0,0.00010722,2]
[348070705,1736292657714,-500.0,0.00010722,2]
[348070706,1736292657725,-944.77,0.00010722,2]
[348070707,1736292657736,-500.0,0.00010722,2]
[348070708,1736292657748,-501.02,0.00010722,2]
[348070709,1736292657759,-1004.2,0.00010722,2]
[348070710,1736292657769,-500.0,0.00010722,2]
[348070711,1736292657779,-500.0,0.00010722,2]
[348070712,1736292657790,-555.21,0.00010722,2]
[348070713,1736292657801,-575.12,0.00010722,2]
[348070714,1736292657811,-941.82,0.00010722,2]
[348070715,1736292657819,-607.67,0.00010722,2]
[348070716,1736292657828,-500.0,0.00010722,2]
[348070717,1736292657838,-500.0,0.00010722,2]
[348070718,1736292657958,-500.0,0.00010722,2]
[348070719,1736292657978,-500.0,0.00010722,2]
[348070720,1736292657987,-361.39496499,0.00010731,2]
[348070721,1736292657996,-402.80847872,0.00010736,2]
[348070722,1736292658005,-152.06,0.00010776,2]
[348070723,1736292658014,-2351.89,0.00010781,2]
[348070724,1736292658023,-1267.64,0.00010781,2]
[348070725,1736292658032,-861.33,0.00010781,2]
[348070726,1736292658042,-915.28,0.00010781,2]
[348070727,1736292658051,-500.0,0.00010781,2]
[348070728,1736292658060,-1100.64,0.00010781,2]
[348070729,1736292658072,-673.78,0.00010781,2]
[348070730,1736292658082,-754.88,0.00010781,2]
[348070731,1736292658092,-802.12,0.00010781,2]
[348070732,1736292658102,-1104.23,0.00010781,2]
[348070733,1736292658113,-1542.83,0.00010781,2]
[348070734,1736292658124,-2595.99,0.00010781,2]
[348070735,1736292658134,-1547.9,0.00010781,2]
[348070736,1736292658146,-759.57104387,0.00010781,2]
[348070737,1736292658156,-500.0,0.00010822,2]
[348070738,1736292658164,-500.0,0.00010822,2]
[348070739,1736292658173,-500.0,0.00010822,2]
[348070740,1736292658182,-500.0,0.00010822,2]
[348070741,1736292658191,-500.0,0.00010822,2]
[348070742,1736292658201,-500.0,0.00010822,2]
[348070743,1736292658210,-500.0,0.00010822,2]
[348070744,1736292658219,-500.0,0.00010822,2]
[348070745,1736292658228,-500.0,0.00010822,2]
[348070746,1736292658237,-500.0,0.00010822,2]
[348070747,1736292658247,-500.0,0.00010822,2]
[348070748,1736292658257,-500.0,0.00010822,2]
[348070749,1736292658266,-500.0,0.00010822,2]
[348070750,1736292658275,-500.0,0.00010822,2]